bitfinex-derivatives/quotes_SOLF0:USTF0_20251024
["timestamp","ask_amount","ask_price","bid_price","bid_amount"]
[1761299988530,6.71585845,192.11,192.07,2.85]
[1761299988730,4.10585845,192.1,192.07,2.85]
[1761299988932,2.61,192.11,192.07,2.85]
[1761299989125,4.10588477,192.1,192.07,2.85]
[1761299989332,2.61,192.11,192.07,2.85]
[1761299989639,4.10615631,192.1,192.07,2.85]
[1761299989826,2.61,192.11,192.07,2.85]
[1761299990031,4.10615863,192.1,192.07,2.85]
[1761299990230,2.61,192.11,192.07,2.85]
[1761299990430,4.10619883,192.1,192.07,2.85]
[1761299990627,2.61,192.11,192.07,2.85]
[1761299990833,4.10619883,192.1,192.07,2.85]
[1761299991039,2.61,192.11,192.07,2.85]
[1761299991242,4.10619881,192.1,192.07,2.85]
[1761299991538,2.61,192.11,192.07,2.85]
[1761299991737,6.71627392,192.1,192.07,2.85]
[1761299991934,2.61,192.1,192.07,2.85]
[1761299994537,7.2939,192.1,192.07,2.85]
[1761299994839,6.71626608,192.09,192.07,2.85]
[1761299995040,2.61,192.09,192.07,2.85]
[1761299999942,7.3239,192.1,192.07,2.85]
[1761300000334,4.10810625,192.09,192.07,2.85]
[1761300000536,7.3239,192.1,192.07,2.85]
[1761300000743,4.10808,192.09,192.07,2.85]
[1761300001048,2.64,192.07,192.05,2.69]
[1761300003141,2.64,192.08,192.05,4.6849]
[1761300003333,2.64,192.08,192.06,2.69]
[1761300006546,2.64,192.08,192.05,7.3749]
[1761300007346,2.64,192.08,192.06,2.69]
[1761300010050,7.3239,192.1,192.07,2.69]
[1761300010245,6.76175651,192.09,192.07,2.69]
[1761300010450,2.64,192.09,192.07,2.69]
[1761300018749,2.64,192.09,192.05,2.69]
[1761300020054,4.6839,192.1,192.05,2.69]
[1761300020252,6.7612431,192.09,192.05,2.69]
[1761300020444,2.64,192.09,192.05,2.69]
[1761300021647,2.64,192.08,192.05,2.69]
[1761300023061,7.3243,192.08,192.05,2.69]
[1761300023448,4.6843,192.08,192.05,2.69]
[1761300023650,2.64,192.07,192.05,2.69]
[1761300024245,6.76046801,192.06,191.99,2.69]
[1761300024447,2.64,192.05,191.99,2.69]
[1761300025651,2.64,192.05,192.01,2.69]
[1761300027051,2.64,192.05,192.02,2.69]
[1761300032162,4.6844,192.08,192.03,2.75]
[1761300032658,7.4044,192.08,192.03,2.75]
[1761300033061,7.4044,192.08,192.04,2.75]
[1761300033963,4.6839,192.1,192.04,2.75]
[1761300034263,4.81215652,192.13,192.04,2.75]
[1761300034264,6.78817833,192.09,192.04,2.75]
[1761300034564,2.67,192.09,192.05,2.83]
[1761300035965,7.3541,192.09,192.05,2.83]
[1761300037764,2.67,192.08,192.05,2.83]
[1761300038066,4.6841,192.09,192.05,2.83]
[1761300038267,7.3541,192.09,192.05,2.83]
[1761300038967,4.6841,192.09,192.05,2.83]
[1761300039667,7.3541,192.09,192.05,2.83]
[1761300040957,2.67,192.08,192.05,2.83]
[1761300041964,2.67,192.07,192.02,7.5156]
[1761300042161,2.67,192.07,192.03,2.83]
[1761300044069,2.67,192.06,192.02,4.6856]
[1761300044270,2.67,192.05,191.98,2.83]
[1761300044569,9.49998386,192.11,191.98,2.83]
[1761300044570,2.67,192.08,191.98,2.83]
[1761300044768,2.67,192.06,191.98,2.83]
[1761300044965,2.67,192.04,191.98,2.83]
[1761300045165,2.67,192.02,191.98,2.83]
[1761300045771,7.3558,192.02,191.98,2.83]
[1761300046166,2.67,192.01,191.98,2.83]
[1761300050173,7.3561,192.01,191.98,2.83]
[1761300054575,2.67,192.0,191.98,2.83]
[1761300055174,4.6861,192.01,191.98,2.83]
[1761300055576,7.3561,192.01,191.98,2.83]
[1761300056073,4.6856,192.03,191.98,2.83]
[1761300056468,2.67,192.05,191.98,2.83]
[1761300056674,6.88755625,192.04,191.98,2.83]
[1761300056875,2.67,192.07,191.98,2.83]
[1761300057082,2.67,192.05,191.98,7.83]
[1761300057283,2.67,192.03,191.99,2.83]
[1761300064495,2.79,192.02,191.98,5.0]
[1761300065395,2.79,191.99,191.98,5.0]
[1761300069589,2.79,191.94,191.9,45.67]
[1761300069792,2.79,191.94,191.91,2.73]
[1761300070493,110.41937794,192.02,191.91,2.73]
[1761300070494,2.79,191.98,191.91,2.73]
[1761300071804,2.79,191.98,191.9,2.73]
[1761300072687,2.79,191.96,191.9,7.4185]
[1761300072891,2.79,191.96,191.9,4.6885]
[1761300073097,2.79,191.96,191.91,2.73]
[1761300074097,2.79,191.95,191.91,2.73]
[1761300079010,2.79,192.03,191.91,2.73]
[1761300079206,2.79,192.01,191.91,2.73]
[1761300079705,2.79,191.99,191.91,2.73]
[1761300079904,2.79,191.99,191.94,2.73]
[1761300080404,4.6866,191.99,191.94,2.73]
[1761300080605,2.79,191.98,191.94,2.73]
[1761300081005,2.79,191.97,191.94,2.73]
[1761300082497,4.6864,192.0,191.94,2.73]
[1761300082707,2.79,191.99,191.96,2.73]
[1761300090317,7.4765,191.99,191.96,2.73]
[1761300090517,2.62,191.98,191.96,2.73]
[1761300092719,2.62,191.98,191.94,7.2976]
[1761300092908,2.62,191.98,191.95,2.61]
[1761300094211,2.62,191.98,191.9,45.57]
[1761300094413,2.73,191.95,191.9,42.96]
[1761300094619,111.59123326,192.02,191.91,2.61]
[1761300094914,7.4168,191.98,191.91,2.61]
[1761300095114,4.2361077,191.97,191.91,2.61]
[1761300095311,4.6868,191.98,191.91,2.61]
[1761300095514,6.96598014,191.97,191.92,2.61]
[1761300095718,2.73,191.97,191.92,2.61]
[1761300098010,7.4171,191.97,191.92,2.61]
[1761300098211,2.73,191.96,191.92,2.61]
[1761300100418,2.73,191.96,191.92,7.2981]
[1761300100715,2.73,191.96,191.9,2.61]
[1761300101716,2.73,191.96,191.89,0.90655691]
[1761300101920,2.73,192.0,191.9,2.61]
[1761300102122,2.73,191.98,191.9,2.61]
[1761300102322,4.25316271,191.97,191.9,2.61]
[1761300102521,2.73,191.98,191.9,2.61]
[1761300102722,4.25374495,191.97,191.9,2.61]
[1761300102917,2.73,191.98,191.9,2.61]
[1761300103221,2.73,191.96,191.9,2.61]
[1761300103614,2.73,191.94,191.9,2.61]
[1761300104923,2.73,191.94,191.9,4.6886]
[1761300105123,2.73,191.94,191.91,2.61]
[1761300109123,2.73,191.93,191.9,2.61]
[1761300115330,2.73,191.95,191.88,2.61]
[1761300115532,4.2586427,191.94,191.88,45.57]
[1761300115732,2.73,191.95,191.89,2.61]
[1761300115931,6.9886427,191.94,191.91,4.6883]
[1761300116230,6.9886427,191.94,191.92,2.61]
[1761300116231,2.73,191.94,191.92,2.61]
[1761300117922,2.73,191.98,191.94,2.61]
[1761300118125,113.56285337,192.02,191.94,2.61]
[1761300118126,6.98694231,191.97,191.94,2.61]
[1761300118425,4.25694231,191.96,191.94,2.61]
[1761300118632,2.73,191.97,191.94,2.61]
[1761300118923,4.25694187,191.96,191.94,2.61]
[1761300119130,2.73,191.97,191.94,2.61]
[1761300119331,4.25693499,191.96,191.94,2.61]
[1761300119633,2.73,191.97,191.94,2.61]
[1761300119835,4.25689164,191.96,191.94,2.61]
[1761300120035,2.71,191.96,191.94,2.61]
[1761300120732,2.71,191.96,191.92,7.578]
[1761300120934,2.71,191.96,191.9,4.6885]
[1761300121137,2.71,191.94,191.9,7.5785]
[1761300121428,2.71,191.94,191.88,2.89]
[1761300122136,2.71,191.94,191.9,2.89]
[1761300122538,2.71,191.94,191.87,43.88673406]
[1761300122739,2.71,191.94,191.87,3.79673406]
[1761300123038,2.71,191.94,191.88,4.689]
[1761300123237,2.71,191.94,191.88,7.579]
[1761300124840,2.71,191.94,191.89,2.89]
[1761300125137,2.71,191.94,191.89,7.5788]
[1761300125332,2.71,191.94,191.9,2.89]
[1761300129043,2.71,191.93,191.9,2.89]
[1761300131239,2.71,191.93,191.87,43.88673406]
[1761300131540,2.71,191.93,191.88,2.89]
[1761300132542,2.71,191.92,191.88,2.89]
[1761300133139,2.71,191.91,191.88,2.89]
[1761300133749,7.3978,191.94,191.89,2.89]
[1761300133943,2.71,191.92,191.89,2.89]
[1761300144360,4.6875,191.95,191.9,2.89]
[1761300144558,6.96734684,191.94,191.9,2.89]
[1761300144760,4.25734684,191.93,191.91,2.89]
[1761300144960,2.71,191.94,191.91,2.89]
[1761300145152,4.25734599,191.93,191.91,2.89]
[1761300145352,2.71,191.94,191.91,2.89]
[1761300145555,4.25753276,191.93,191.91,2.89]
[1761300145749,2.71,191.94,191.91,2.89]
[1761300145954,4.25753276,191.93,191.91,2.89]
[1761300146154,2.71,191.94,191.91,2.89]
[1761300146354,4.25759537,191.93,191.91,2.89]
[1761300146553,2.71,191.94,191.91,2.89]
[1761300146756,4.257773,191.93,191.91,2.89]
[1761300146963,2.71,191.94,191.91,2.89]
[1761300147258,7.52215652,191.98,191.91,2.89]
[1761300147459,4.25834579,191.97,191.93,2.89]
[1761300147657,2.71,192.0,191.95,2.89]
[1761300147960,2.71,192.0,191.96,2.89]
[1761300151565,2.63,191.99,191.94,45.73]
[1761300153057,4.6865,191.99,191.94,45.73]
[1761300153258,2.63,191.98,191.94,45.73]
[1761300153659,2.63,191.98,191.94,2.77]
[1761300158063,2.63,191.97,191.92,45.73]
[1761300158263,2.63,191.97,191.93,2.77]
[1761300160672,2.63,191.97,191.91,47.6483]
[1761300160974,2.63,191.97,191.92,2.77]
[1761300165277,7.317,191.97,191.92,2.77]
[1761300165574,2.63,191.96,191.92,2.77]
[1761300165771,2.63,191.96,191.91,47.6483]
[1761300165968,2.63,191.96,191.91,50.4183]
[1761300166168,2.63,191.94,191.91,42.96]
[1761300167572,2.63,191.94,191.91,45.73]
[1761300168179,2.63,191.94,191.91,42.96]
[1761300168369,2.63,191.93,191.91,42.96]
[1761300168567,2.63,191.93,191.88,2.77]
[1761300169973,7.318,191.93,191.88,2.77]
[1761300171576,7.318,191.93,191.89,2.77]
[1761300175785,2.63,191.92,191.89,2.77]
[1761300179489,2.64,191.92,191.89,2.77]
[1761300180395,2.64,191.91,191.88,42.96]
[1761300180784,2.64,191.89,191.88,42.96]
[1761300181881,2.64,191.89,191.86,3.56684039]
[1761300182191,2.64,191.89,191.87,2.66]
[1761300184196,2.64,191.92,191.87,2.66]
[1761300184693,2.64,191.92,191.88,2.66]
[1761300185092,2.64,191.91,191.88,2.66]
[1761300185392,2.64,191.96,191.88,2.66]
[1761300185584,2.64,191.94,191.88,2.66]
[1761300186996,7.3281,191.93,191.88,2.66]
[1761300187494,2.64,191.92,191.88,2.66]
[1761300187697,2.64,191.9,191.88,2.66]
[1761300188490,4.6884,191.91,191.88,2.66]
[1761300188894,7.3284,191.91,191.88,2.66]
[1761300190490,4.6884,191.91,191.88,2.66]
[1761300192998,7.328,191.93,191.88,2.66]
[1761300193603,7.328,191.93,191.89,2.66]
[1761300193801,4.6874,191.95,191.89,7.3488]
[1761300194003,2.64,191.97,191.9,2.66]
[1761300194205,2.64,191.95,191.9,2.66]
[1761300194399,2.64,191.93,191.88,42.96]
[1761300194902,2.64,191.93,191.89,2.66]
[1761300195992,7.328,191.93,191.89,2.66]
[1761300198007,4.67428361,191.99,191.89,2.66]
[1761300198008,7.3275,191.95,191.9,2.66]
[1761300198309,76.85286275,193.71,191.9,2.66]
[1761300198310,2.64,191.98,191.9,2.66]
[1761300200109,7.327,191.97,191.93,2.66]
[1761300203320,2.64,191.96,191.93,2.66]
[1761300208919,7.3266,191.99,191.93,4.6877]
[1761300209123,2.67,191.98,191.94,2.66]
[1761300212214,2.67,191.98,191.95,2.86]
[1761300215721,4.6866,191.99,191.95,2.86]
[1761300216117,7.3566,191.99,191.96,2.86]
[1761300221827,2.67,191.98,191.96,2.86]
[1761300223027,2.67,192.0,191.96,2.86]
[1761300223626,7.3563,192.0,191.96,2.86]
[1761300223927,2.67,191.99,191.96,2.86]
[1761300224228,2.67,191.99,191.97,2.86]
[1761300226730,4.6863,192.0,191.97,2.86]
[1761300227230,7.3563,192.0,191.98,2.86]
[1761300227832,7.3558,192.02,191.98,2.86]
[1761300228238,2.67,192.02,191.98,2.86]
[1761300228934,2.67,192.02,191.99,42.94]
[1761300229121,2.67,192.02,191.99,45.8]
[1761300230027,2.67,192.02,191.99,2.86]
[1761300230332,2.67,192.02,191.99,45.8]
[1761300230634,2.67,192.02,191.99,2.86]
[1761300230834,2.67,192.02,191.99,45.8]
[1761300231037,2.67,192.01,191.97,42.94]
[1761300231330,2.67,192.01,191.96,42.94]
[1761300231932,7.3561,192.01,191.96,45.8]
[1761300232234,2.67,192.0,191.96,45.8]
[1761300232922,2.67,191.99,191.96,42.94]
[1761300233329,2.67,191.99,191.94,4.6875]
[1761300233529,2.67,191.99,191.95,45.8]
[1761300234330,2.67,191.99,191.96,42.94]
[1761300234530,2.67,191.99,191.95,2.86]
[1761300234730,2.67,191.99,191.96,42.94]
[1761300236134,2.67,191.99,191.96,45.8]
[1761300236738,2.67,191.99,191.97,2.86]
[1761300237234,2.67,191.99,191.96,42.94]
[1761300237439,2.67,191.99,191.96,45.8]
[1761300238240,2.67,191.99,191.97,2.86]
[1761300239643,2.75,192.01,191.97,2.86]
[1761300240036,2.75,192.01,191.98,42.94]
[1761300240342,2.75,192.01,191.98,45.71]
[1761300241435,2.75,192.01,191.98,2.77]
[1761300241636,2.75,192.01,191.98,45.71]
[1761300242645,2.75,192.01,191.99,2.77]
[1761300242847,2.75,192.04,191.99,2.77]
[1761300244049,2.75,192.03,191.99,2.77]
[1761300244244,2.75,192.03,191.87,74.99391179]
[1761300244245,75.6468,192.0,191.86,12.99391179]
[1761300244447,2.75,191.96,191.75,2.77]
[1761300244742,2.75,191.82,191.75,2.77]
[1761300244945,7.01469583,191.81,191.75,2.77]
[1761300245145,4.80729419,191.87,191.75,2.77]
[1761300245146,2.75,191.79,191.75,2.77]
[1761300245349,2.75,191.84,191.75,2.77]
[1761300245541,7.00492074,191.83,191.75,2.77]
[1761300245745,7.00492074,191.82,191.75,46.15]
[1761300245937,4.25492074,191.81,191.75,46.15]
[1761300246139,4.6908,191.81,191.75,46.15]
[1761300246343,7.4408,191.81,191.75,2.77]
[1761300246543,2.75,191.8,191.75,2.77]
[1761300249946,2.75,191.8,191.74,62.0]
[1761300250153,2.75,191.78,191.7,2.77]
[1761300250653,2.75,191.78,191.71,46.15]
[1761300251842,2.75,191.78,191.72,2.77]
[1761300252447,2.75,191.78,191.72,46.17]
[1761300252763,4.6911,191.8,191.73,2.77]
[1761300253141,4.6911,191.8,191.74,64.77]
[1761300253544,7.4411,191.8,191.74,64.77]
[1761300254844,2.75,191.79,191.74,64.77]
[1761300256449,2.75,191.79,191.75,2.77]
[1761300257648,7.4416,191.78,191.72,43.4]
[1761300257952,7.4416,191.78,191.72,46.17]
[1761300260654,7.4416,191.78,191.72,108.17]
[1761300261652,2.75,191.77,191.72,108.17]
[1761300261855,2.75,191.77,191.73,2.77]
[1761300265263,106.30462242,191.84,191.72,105.4]
[1761300265264,2.75,191.75,191.72,105.4]
[1761300265460,2.75,191.75,191.72,62.0]
[1761300265855,2.75,191.75,191.71,46.15]
[1761300266164,2.75,191.75,191.72,2.77]
[1761300266358,4.6922,191.76,191.72,2.77]
[1761300266669,7.4422,191.76,191.72,2.77]
[1761300269661,2.77,191.75,191.72,2.77]
[1761300271862,4.6922,191.76,191.72,2.77]
[1761300272157,7.4622,191.76,191.72,2.77]
[1761300273568,2.77,191.75,191.72,2.77]
[1761300275574,4.6922,191.76,191.72,2.77]
[1761300275873,7.4622,191.76,191.72,2.77]
[1761300276072,2.77,191.75,191.72,2.77]
[1761300278778,4.6919,191.77,191.72,2.77]
[1761300279478,2.77,191.76,191.72,2.77]
[1761300280382,7.4614,191.79,191.73,2.61]
[1761300280683,7.00614729,191.78,191.73,2.61]
[1761300280880,2.77,191.78,191.74,45.93]
[1761300281283,7.0080674,191.77,191.74,45.93]
[1761300281482,2.77,191.77,191.74,45.93]
[1761300283181,4.2445773,191.76,191.74,45.93]
[1761300283480,7.4619,191.77,191.74,45.93]
[1761300283682,4.24507755,191.76,191.74,45.93]
[1761300283880,7.4619,191.77,191.74,45.93]
[1761300284080,4.24507755,191.76,191.74,45.93]
[1761300284384,4.24926399,191.75,191.74,45.93]
[1761300285275,2.77,191.77,191.74,45.93]
[1761300285475,7.02115865,191.76,191.74,45.93]
[1761300285675,2.77,191.76,191.74,45.93]
[1761300285878,2.77,191.76,191.74,43.32]
[1761300286483,7.02206923,191.75,191.74,43.32]
[1761300288076,2.77,191.73,191.69,3.51760905]
[1761300288282,4.25206923,191.72,191.7,45.91]
[1761300288580,4.25206923,191.71,191.7,45.91]
[1761300288978,4.25206923,191.71,191.7,43.3]
[1761300289179,2.77,191.7,191.64,2.61]
[1761300289384,16.70079785,191.69,191.65,45.91]
[1761300289689,4.25206923,191.68,191.65,45.91]
[1761300289892,4.25206923,191.67,191.65,45.91]
[1761300290181,4.25206923,191.66,191.65,45.91]
[1761300290386,4.25206923,191.66,191.65,2.61]
[1761300290684,4.25206923,191.66,191.65,45.91]
[1761300291182,4.25206923,191.66,191.65,107.91]
[1761300291385,2.77,191.7,191.65,45.91]
[1761300291584,2.77,191.68,191.65,2.61]
[1761300291885,4.13535016,191.67,191.65,45.91]
[1761300292186,4.13535016,191.66,191.65,45.91]
[1761300292383,2.77,191.68,191.65,45.91]
[1761300292586,4.13386247,191.67,191.65,45.91]
[1761300292780,4.80729419,191.71,191.64,4.695]
[1761300292781,4.13363758,191.66,191.64,4.695]
[1761300292978,2.77,191.69,191.64,4.695]
[1761300293174,4.13364937,191.68,191.65,2.61]
[1761300293388,4.13364937,191.67,191.65,2.61]
[1761300293687,2.77,191.69,191.65,2.61]
[1761300293887,4.13231584,191.68,191.65,2.61]
[1761300294091,4.13231584,191.67,191.65,2.61]
[1761300294388,2.77,191.69,191.65,2.61]
[1761300294589,2.77,191.67,191.65,2.61]
[1761300297191,2.77,191.69,191.65,2.61]
[1761300299587,7.4331,191.72,191.66,2.77]
[1761300300293,2.74,191.71,191.67,2.77]
[1761300301692,7.4331,191.72,191.67,2.77]
[1761300303291,2.74,191.71,191.67,2.77]
[1761300303692,4.6931,191.72,191.68,2.77]
[1761300304087,7.4331,191.72,191.68,2.77]
[1761300305294,4.6931,191.72,191.68,2.77]
[1761300305896,4.6926,191.74,191.68,2.77]
[1761300306397,4.6926,191.74,191.69,2.77]
[1761300306598,7.4326,191.74,191.69,2.77]
[1761300306898,7.4326,191.74,191.7,2.77]
[1761300307488,4.6926,191.74,191.7,2.77]
[1761300307695,2.74,191.73,191.7,2.77]
[1761300313202,2.74,191.72,191.7,2.77]
[1761300315398,2.74,191.72,191.68,47.9338]
[1761300315704,2.74,191.72,191.68,50.7038]
[1761300315999,2.74,191.72,191.68,7.4638]
[1761300316202,2.74,191.72,191.69,2.77]
[1761300316395,2.74,191.72,191.68,7.4638]
[1761300317001,7.4331,191.72,191.68,2.77]
[1761300317189,2.74,191.71,191.68,2.77]
[1761300327704,2.74,191.71,191.67,47.9141]
[1761300327911,2.74,191.71,191.67,4.6941]
[1761300328612,2.74,191.71,191.66,43.18]
[1761300329110,2.75,191.74,191.64,2.72]
[1761300329406,2.72,191.72,191.64,2.72]
[1761300329601,2.72,191.7,191.64,2.72]
[1761300329797,4.11193155,191.71,191.64,2.72]
[1761300329798,2.72,191.68,191.64,2.72]
[1761300330014,2.72,191.68,191.63,43.2]
[1761300330308,4.6949,191.65,191.54,2.81]
[1761300330505,2.72,191.64,191.57,2.81]
[1761300331005,2.72,191.64,191.58,7.5062]
[1761300331405,2.72,191.64,191.59,43.22]
[1761300331614,2.72,191.64,191.6,43.22]
[1761300332313,2.72,191.64,191.6,43.2]
[1761300333211,2.72,191.64,191.58,69.5062]
[1761300333412,2.72,191.64,191.59,46.01]
[1761300333909,2.72,191.64,191.6,43.2]
[1761300334312,2.72,191.64,191.6,46.01]
[1761300335124,2.72,191.64,191.61,46.01]
[1761300335414,2.72,191.64,191.61,2.81]
[1761300335616,2.72,191.64,191.62,43.2]
[1761300336018,2.72,191.65,191.63,46.01]
[1761300336217,2.72,191.65,191.64,43.2]
[1761300336618,6.89961904,191.65,191.64,43.2]
[1761300337321,2.72,191.65,191.64,43.2]
[1761300337813,6.93053875,191.65,191.64,43.2]
[1761300338312,2.72,191.65,191.61,2.81]
[1761300338509,2.72,191.65,191.64,43.2]
[1761300338919,2.72,191.65,191.61,2.81]
[1761300339113,2.72,191.65,191.62,43.2]
[1761300339312,2.72,191.65,191.62,46.01]
[1761300339511,2.72,191.65,191.62,2.81]
[1761300339712,2.72,191.65,191.63,43.2]
[1761300342619,2.72,191.65,191.64,43.2]
[1761300342819,2.72,191.65,191.62,2.81]
[1761300343315,2.72,191.65,191.63,43.18]
[1761300343617,2.72,191.65,191.64,43.18]
[1761300343820,2.72,191.65,191.64,43.2]
[1761300344208,7.4145,191.66,191.64,46.01]
[1761300344620,2.72,191.65,191.64,43.2]
[1761300346922,2.72,191.65,191.61,2.81]
[1761300347116,2.72,191.65,191.64,43.18]
[1761300348225,2.72,191.65,191.61,2.81]
[1761300348426,2.72,191.65,191.62,45.99]
[1761300348925,2.72,191.65,191.63,45.99]
[1761300349127,2.72,191.65,191.63,2.81]
[1761300349730,2.72,191.65,191.64,43.18]
[1761300350030,2.72,191.65,191.63,2.81]
[1761300350520,2.72,191.65,191.64,43.18]
[1761300350920,7.4148,191.65,191.63,2.81]
[1761300351418,7.4148,191.65,191.64,43.16]
[1761300351829,7.4148,191.65,191.63,2.81]
[1761300352025,7.4148,191.65,191.64,43.16]
[1761300352425,7.4148,191.65,191.63,2.81]
[1761300353224,7.4148,191.65,191.64,43.16]
[1761300353631,7.4148,191.65,191.63,2.81]
[1761300354229,2.72,191.64,191.61,2.81]
[1761300354430,2.72,191.64,191.62,43.16]
[1761300354838,2.72,191.64,191.6,4.6958]
[1761300355018,2.72,191.63,191.61,43.16]
[1761300355332,2.72,191.63,191.62,43.16]
[1761300356126,7.4153,191.63,191.62,43.16]
[1761300356328,7.4153,191.63,191.59,2.81]
[1761300356329,2.72,191.62,191.59,2.81]
[1761300356527,2.72,191.62,191.6,45.97]
[1761300357329,2.72,191.62,191.61,43.16]
[1761300357535,2.72,191.61,191.57,2.81]
[1761300357721,2.72,191.61,191.58,43.16]
[1761300358030,2.72,191.63,191.59,2.81]
[1761300358332,2.72,191.63,191.6,45.97]
[1761300358522,2.72,191.63,191.61,43.16]
[1761300358726,2.72,191.63,191.61,45.97]
[1761300359034,2.72,191.63,191.61,2.81]
[1761300359234,2.72,191.63,191.62,43.16]
[1761300359827,2.72,191.63,191.61,2.81]
[1761300360141,2.72,191.63,191.62,43.16]
[1761300360427,2.82,191.66,191.62,43.16]
[1761300360629,2.82,191.64,191.62,2.77]
[1761300361032,2.82,191.64,191.63,43.16]
[1761300364333,2.82,191.64,191.62,2.77]
[1761300364534,2.82,191.64,191.63,43.16]
[1761300364736,2.82,191.64,191.62,2.77]
[1761300364931,2.82,191.64,191.63,43.14]
[1761300367141,2.82,191.64,191.62,2.77]
[1761300367340,2.82,191.64,191.63,43.14]
[1761300368345,7.04753616,191.64,191.63,43.14]
[1761300369140,2.82,191.63,191.61,43.14]
[1761300369938,109.64682875,191.67,191.61,43.14]
[1761300369939,4.6955,191.62,191.61,43.14]
[1761300370145,2.82,191.61,191.57,2.77]
[1761300370342,2.82,191.61,191.6,43.14]
[1761300370743,4.6955,191.62,191.6,45.91]
[1761300370942,7.5155,191.62,191.6,45.91]
[1761300371938,2.82,191.61,191.6,43.14]
[1761300372132,2.82,191.61,191.57,2.77]
[1761300372336,2.82,191.61,191.59,2.77]
[1761300372848,2.82,191.61,191.56,4.6968]
[1761300372849,4.6961,191.6,191.56,2.77]
[1761300373039,4.6961,191.6,191.58,2.77]
[1761300373545,4.6961,191.6,191.59,43.14]
[1761300373751,8.93204869,191.6,191.59,45.91]
[1761300374738,4.23594869,191.6,191.59,45.91]
[1761300378148,4.6951,191.64,191.6,2.77]
[1761300378350,4.23649374,191.63,191.62,2.77]
[1761300378549,4.23649374,191.63,191.62,45.91]
[1761300379150,4.23649374,191.63,191.62,2.77]
[1761300379349,4.23649374,191.63,191.62,35.81]
[1761300379541,4.23649374,191.63,191.62,45.91]
[1761300380042,4.23649374,191.63,191.62,2.77]
[1761300380254,4.23649374,191.63,191.62,35.79]
[1761300380549,4.23649374,191.63,191.62,45.91]
[1761300380750,104.84972203,191.67,191.63,2.77]
[1761300380939,4.23715132,191.66,191.63,2.77]
[1761300381146,4.23715132,191.66,191.61,4.6956]